[Event "Faroes Open 2018"]
[Site "Sandavagur"]
[Date "2018.07.14"]
[Round "9"]
[White "Nielsen, Suni I Horni"]
[Black "Djurhuus, Arant"]
[Result "1/2-1/2"]
[ECO "B40"]
[WhiteElo "1487"]
[BlackElo "1703"]
[Annotator "NA"]
[PlyCount "73"]
[EventDate "2018.07.07"]
[EventType "swiss"]
[EventCountry "FAI"]
[SourceTitle "playchess.com"]
[Source "ChessBase"]
[SourceQuality "1"]
[TimeControl "40/5400+30:900+30"]

1. e4 {[%emt 0:00:00]} c5 {[%emt 0:00:00]} 2. Nf3 {[%emt 0:00:00]} e6 {[%emt 0:00:00]} 3. d4 {[%emt 0:00:00]} cxd4 {[%emt 0:00:00]} 4. Nxd4 {[%emt 0:00:00]} Nf6 {[%emt 0:00:13]} 5. Nc3 {[%emt 0:00:19]} Bb4 {[%emt 0:00:10]} 6. Nde2 {[%emt 0:01:28]} Nxe4 {[%emt 0:03:26]} 7. Qd4 {[%emt 0:02:20]} Bxc3+ {[%emt 0:02:34]} 8. Nxc3 {[%emt 0:00:11]} Nf6 {[%emt 0:00:39]} 9. Bg5 {[%emt 0:02:31]} d5 {[%emt 0:10:32]} 10. Rd1 {[%emt 0:02:23]} Nc6 {[%emt 0:01:37]} 11. Qh4 {[%emt 0:00:21]} Qe7 {[%emt 0:14:45]} 12. Bd3 {[%emt 0:05:49]} Bd7 {[%emt 0:10:08]} 13. O-O {[%emt 0:02:20]} O-O-O {[%emt 0:08:57]} 14. Rfe1 {[%emt 0:05:23]} Qb4 {[%emt 0:00:22]} 15. Bxf6 {[%emt 0:01:09]} gxf6 {[%emt 0:00:10]} 16. Qxf6 {[%emt 0:00:19]} Qd4 {[%emt 0:04:01]} 17. Qxd4 {[%emt 0:02:08]} Nxd4 {[%emt 0:00:13]} 18. Re3 {[%emt 0:07:16]} f5 {[%emt 0:06:14]} 19. f4 {[%emt 0:01:22]} Rhg8 {[%emt 0:01:28]} 20. g3 {[%emt 0:00:33]} h5 {[%emt 0:00:38]} 21. Kf2 {[%emt 0:03:00]} Bc6 {[%emt 0:01:44]} 22. Rd2 {[%emt 0:05:59]} Rg6 {[%emt 0:02:26]} 23. Bf1 {[%emt 0:01:12]} Nxc2 {[%emt 0:01:15]} 24. Rxc2 {[%emt 0:00:09]} d4 {[%emt 0:00:11]} 25. Rd3 {[%emt 0:01:04]} dxc3 {[%emt 0:00:48]} 26. Rcxc3 {[%emt 0:01:29]} h4 {[%emt 0:03:49]} 27. Bg2 {[%emt 0:01:41]} hxg3+ {[%emt 0:00:17]} 28. hxg3 {[%emt 0:00:09]} Rxd3 {[%emt 0:02:00]} 29. Rxd3 {[%emt 0:00:06]} Bxg2 {[%emt 0:01:43]} 30. Kxg2 {[%emt 0:00:04]} Rg7 {[%emt 0:00:43]} 31. Kf3 {[%emt 0:03:44]} Rd7 {[%emt 0:02:56]} 32. Re3 {[%emt 0:03:28]} Rd6 {[%emt 0:00:10]} 33. b3 {[%emt 0:03:37]} Kd7 {[%emt 0:00:17]} 34. g4 {[%emt 0:00:20]} fxg4+ {[%emt 0:00:14]} 35. Kxg4 {[%emt 0:00:13]} Rd5 {[%emt 0:00:35]} 36. a3 {[%emt 0:02:06]} a5 {[%emt 0:06:25]} 37. Kf3 {[%emt 0:08:15]} 1/2-1/2

[Event "Faroes Open 2018"]
[Site "Sandavagur"]
[Date "2018.07.14"]
[Round "9"]
[White "Fjallheim, Benjamin Reinert"]
[Black "Nilssen, Ellen Fredericia"]
[Result "0-1"]
[ECO "C02"]
[WhiteElo "1375"]
[BlackElo "2152"]
[Annotator "NA"]
[PlyCount "46"]
[EventDate "2018.07.07"]
[EventType "swiss"]
[EventCountry "FAI"]
[SourceTitle "playchess.com"]
[Source "ChessBase"]
[SourceQuality "1"]
[TimeControl "40/5400+30:900+30"]

1. e4 {[%emt 0:10:04]} e6 {[%emt 0:00:00]} 2. d4 {[%emt 0:00:16]} d5 {[%emt 0:00:00]} 3. e5 {[%emt 0:00:20]} c5 {[%emt 0:00:02]} 4. c3 {[%emt 0:00:54]} Nc6 {[%emt 0:00:09]} 5. Nf3 {[%emt 0:00:30]} Bd7 {[%emt 0:00:12]} 6. Bd3 {[%emt 0:01:44]} Rc8 {[%emt 0:00:38]} 7. a3 {[%emt 0:04:22]} cxd4 {[%emt 0:05:51]} 8. cxd4 {[%emt 0:04:44]} Qb6 {[%emt 0:03:45]} 9. Bc2 {[%emt 0:04:27]} f6 {[%emt 0:04:33]} 10. exf6 {[%emt 0:04:55]} Nxf6 {[%emt 0:00:10]} 11. Nc3 {[%emt 0:02:10]} Bd6 {[%emt 0:02:31]} 12. O-O {[%emt 0:02:04]} O-O {[%emt 0:03:50]} 13. Ne2 {[%emt 0:04:00]} e5 {[%emt 0:09:02]} 14. dxe5 {[%emt 0:06:20]} Nxe5 {[%emt 0:00:40]} 15. Nxe5 {[%emt 0:00:51]} Bxe5 {[%emt 0:00:03]} 16. Ra2 {[%emt 0:00:55]} Bxh2+ {[%emt 0:08:01]} 17. Kxh2 {[%emt 0:02:54]} Qc7+ {[%emt 0:00:09]} 18. Bf4 {[%emt 0:03:00]} Qxc2 {[%emt 0:02:06]} 19. Bd6 {[%emt 0:01:37]} Ng4+ {[%emt 0:05:03]} 20. Kg1 {[%emt 0:04:17]} Qxd1 {[%emt 0:00:57]} 21. Rxd1 {[%emt 0:00:27]} Rxf2 {[%emt 0:01:50]} 22. Nf4 {[%emt 0:02:46]} Rcc2 {[%emt 0:02:27]} 23. Rxd5 {[%emt 0:03:04]} Rc1+ {[%emt 0:00:07]} 0-1

[Event "Faroes Open 2018"]
[Site "Sandavagur"]
[Date "2018.07.14"]
[Round "9"]
[White "Tummasarson, Flovin M."]
[Black "Maroroa, Sue"]
[Result "0-1"]
[ECO "C55"]
[WhiteElo "1237"]
[BlackElo "2104"]
[Annotator "NA"]
[PlyCount "50"]
[EventDate "2018.07.07"]
[EventType "swiss"]
[EventCountry "FAI"]
[SourceTitle "playchess.com"]
[Source "ChessBase"]
[SourceQuality "1"]
[TimeControl "40/5400+30:900+30"]

1. e4 {[%emt 0:00:00]} e5 {[%emt 0:00:00]} 2. Nf3 {[%emt 0:00:00]} Nc6 {[%emt 0:00:00]} 3. Bc4 {[%emt 0:00:01]} Nf6 {[%emt 0:00:00]} 4. d3 {[%emt 0:00:40]} h6 {[%emt 0:00:00]} 5. Nc3 {[%emt 0:00:50]} d6 {[%emt 0:00:13]} 6. h3 {[%emt 0:00:23]} Na5 {[%emt 0:05:28]} 7. Bb3 {[%emt 0:02:38]} g5 {[%emt 0:00:22]} 8. g4 {[%emt 0:04:46]} Nxb3 {[%emt 0:05:33]} 9. axb3 {[%emt 0:01:11]} Bg7 {[%emt 0:01:34]} 10. Be3 {[%emt 0:01:00]} d5 {[%emt 0:05:07]} 11. exd5 {[%emt 0:05:19]} Nxd5 {[%emt 0:00:08]} 12. Qd2 {[%emt 0:02:22]} Nxc3 {[%emt 0:01:17]} 13. bxc3 {[%emt 0:03:35]} Qd5 {[%emt 0:00:32]} 14. Ke2 {[%emt 0:00:05]} O-O {[%emt 0:05:50]} 15. c4 {[%emt 0:02:22]} Qd6 {[%emt 0:03:33]} 16. Rad1 {[%emt 0:02:10]} f5 {[%emt 0:04:11]} 17. gxf5 {[%emt 0:05:42]} Bxf5 {[%emt 0:01:21]} 18. b4 {[%emt 0:07:21]} Qg6 {[%emt 0:10:12]} 19. Rdg1 {[%emt 0:04:12]} Qh5 {[%emt 0:04:05]} 20. Bxg5 {[%emt 0:09:53]} Kh8 {[%emt 0:04:58]} 21. Be3 {[%emt 0:08:49]} Bd7 {[%emt 0:09:47]} 22. Rg3 {[%emt 0:02:37]} Rxf3 {[%emt 0:00:53]} 23. Rxf3 {[%emt 0:02:33]} Bc6 {[%emt 0:01:08]} 24. Rg1 {[%emt 0:04:31]} Bxf3+ {[%emt 0:00:11]} 25. Ke1 {[%emt 0:00:25]} Qxh3 {[%emt 0:00:26]} 0-1

[Event "Faroes Open 2018"]
[Site "Sandavagur"]
[Date "2018.07.14"]
[Round "9"]
[White "Jacobsen, Markus"]
[Black "Petersen, Elias"]
[Result "1/2-1/2"]
[ECO "C07"]
[WhiteElo "1106"]
[BlackElo "1035"]
[Annotator "NA"]
[PlyCount "172"]
[EventDate "2018.07.07"]
[EventType "swiss"]
[EventCountry "FAI"]
[SourceTitle "playchess.com"]
[Source "ChessBase"]
[SourceQuality "1"]
[TimeControl "40/5400+30:900+30"]

1. e4 {[%emt 0:00:00]} e6 {[%emt 0:00:00]} 2. d4 {[%emt 0:00:00]} d5 {[%emt 0:00:00]} 3. Nd2 {[%emt 0:00:13]} c5 {[%emt 0:00:38]} 4. c3 {[%emt 0:00:25]} Nc6 {[%emt 0:00:22]} 5. Ngf3 {[%emt 0:00:53]} Qb6 {[%emt 0:02:00]} 6. Qb3 {[%emt 0:03:21]} Qxb3 {[%emt 0:05:47]} 7. Nxb3 {[%emt 0:00:26]} b6 {[%emt 0:00:36]} 8. exd5 {[%emt 0:00:54]} exd5 {[%emt 0:00:23]} 9. Bb5 {[%emt 0:00:40]} Bb7 {[%emt 0:00:27]} 10. Ne5 {[%emt 0:00:37]} Rc8 {[%emt 0:00:22]} 11. dxc5 {[%emt 0:01:37]} Bxc5 {[%emt 0:00:23]} 12. Nxc5 {[%emt 0:00:31]} bxc5 {[%emt 0:00:44]} 13. O-O {[%emt 0:02:27]} Nge7 {[%emt 0:00:38]} 14. Nxc6 {[%emt 0:01:14]} Bxc6 {[%emt 0:00:21]} 15. Bxc6+ {[%emt 0:00:46]} Rxc6 16. Re1 {[%emt 0:00:46]} Rc7 {[%emt 0:01:06]} 17. Bf4 {[%emt 0:00:40]} Rd7 {[%emt 0:00:22]} 18. Rad1 {[%emt 0:00:58]} O-O {[%emt 0:00:34]} 19. c4 {[%emt 0:01:00]} Rfd8 {[%emt 0:01:37]} 20. Be3 {[%emt 0:04:12]} d4 {[%emt 0:01:08]} 21. Bd2 {[%emt 0:01:08]} Nc6 {[%emt 0:01:08]} 22. a3 {[%emt 0:01:14]} f6 {[%emt 0:02:02]} 23. Re6 {[%emt 0:01:00]} Ne5 {[%emt 0:00:37]} 24. Rc1 {[%emt 0:01:45]} Kf7 {[%emt 0:00:49]} 25. Ra6 {[%emt 0:00:24]} Rb8 {[%emt 0:00:13]} 26. b4 {[%emt 0:00:46]} Nd3 {[%emt 0:00:46]} 27. Rb1 {[%emt 0:01:07]} Re7 {[%emt 0:00:52]} 28. Kf1 {[%emt 0:00:51]} g5 {[%emt 0:01:13]} 29. b5 {[%emt 0:00:51]} Ne5 {[%emt 0:01:37]} 30. Rc1 {[%emt 0:02:53]} h5 {[%emt 0:02:53]} 31. f4 {[%emt 0:02:00]} Nd3 {[%emt 0:00:45]} 32. Rd1 {[%emt 0:00:39]} Nxf4 {[%emt 0:02:08]} 33. Bxf4 {[%emt 0:00:39]} gxf4 {[%emt 0:00:24]} 34. Rc6 {[%emt 0:00:34]} Re5 {[%emt 0:01:05]} 35. Rc7+ {[%emt 0:00:17]} Kg6 {[%emt 0:00:10]} 36. Rxa7 {[%emt 0:00:25]} h4 {[%emt 0:01:09]} 37. h3 {[%emt 0:00:47]} Re3 {[%emt 0:00:41]} 38. Re1 {[%emt 0:02:01]} Rc3 {[%emt 0:01:27]} 39. Re4 {[%emt 0:01:03]} Kf5 {[%emt 0:01:12]} 40. Ree7 {[%emt 0:01:16]} f3 {[%emt 0:00:34]} 41. a4 {[%emt 0:16:40]} fxg2+ {[%emt 0:15:21]} 42. Kxg2 {[%emt 0:00:22]} Rg8+ {[%emt 0:00:13]} 43. Rg7 {[%emt 0:00:12]} Rxg7+ {[%emt 0:00:52]} 44. Rxg7 {[%emt 0:00:14]} Rxc4 {[%emt 0:00:07]} 45. a5 {[%emt 0:00:26]} d3 {[%emt 0:00:20]} 46. Kf2 {[%emt 0:01:21]} Rd4 {[%emt 0:00:41]} 47. Ke1 {[%emt 0:00:56]} d2+ {[%emt 0:00:15]} 48. Kd1 {[%emt 0:00:15]} c4 {[%emt 0:00:13]} 49. Rg4 {[%emt 0:00:38]} Rd5 {[%emt 0:00:42]} 50. Rxc4 {[%emt 0:00:50]} Rxb5 {[%emt 0:00:13]} 51. a6 {[%emt 0:00:22]} Ra5 {[%emt 0:00:23]} 52. Rxh4 {[%emt 0:01:20]} Rxa6 {[%emt 0:00:29]} 53. Kxd2 {[%emt 0:00:16]} Kg5 {[%emt 0:00:38]} 54. Rc4 {[%emt 0:00:37]} f5 {[%emt 0:00:25]} 55. Ke3 {[%emt 0:00:49]} Ra3+ {[%emt 0:00:09]} 56. Ke2 {[%emt 0:00:55]} Rxh3 {[%emt 0:00:11]} 57. Rd4 {[%emt 0:00:52]} f4 {[%emt 0:00:33]} 58. Rd3 {[%emt 0:00:37]} Rh1 {[%emt 0:01:28]} 59. Rf3 {[%emt 0:00:27]} Kg4 {[%emt 0:00:34]} 60. Rf2 {[%emt 0:01:20]} Rh3 {[%emt 0:00:43]} 61. Rg2+ {[%emt 0:00:32]} Kf5 {[%emt 0:00:13]} 62. Rf2 {[%emt 0:00:33]} Ke4 {[%emt 0:00:16]} 63. Kf1 {[%emt 0:01:19]} f3 {[%emt 0:00:22]} 64. Kg1 {[%emt 0:00:32]} Kf4 {[%emt 0:00:43]} 65. Rh2 {[%emt 0:02:18]} Rg3+ {[%emt 0:00:17]} 66. Kf2 {[%emt 0:00:18]} Rg6 {[%emt 0:00:32]} 67. Rh4+ {[%emt 0:00:27]} Kg5 {[%emt 0:00:56]} 68. Rh3 {[%emt 0:00:25]} Rc6 {[%emt 0:01:09]} 69. Rxf3 {[%emt 0:00:34]} Kh4 {[%emt 0:00:25]} 70. Rf4+ {[%emt 0:00:28]} Kg5 {[%emt 0:00:16]} 71. Kf3 {[%emt 0:00:32]} Rc1 {[%emt 0:00:21]} 72. Rg4+ {[%emt 0:00:29]} Kh5 {[%emt 0:00:11]} 73. Rg8 {[%emt 0:00:44]} Rf1+ {[%emt 0:00:45]} 74. Ke4 {[%emt 0:00:28]} Re1+ {[%emt 0:00:15]} 75. Kf5 {[%emt 0:00:34]} Kh6 {[%emt 0:00:13]} 76. Kf6 {[%emt 0:00:21]} Kh7 {[%emt 0:00:40]} 77. Rg3 {[%emt 0:00:49]} Rf1+ {[%emt 0:00:40]} 78. Ke7 {[%emt 0:00:21]} Kh6 {[%emt 0:00:34]} 79. Rg2 {[%emt 0:01:43]} Kh5 {[%emt 0:00:55]} 80. Rg8 {[%emt 0:00:17]} Re1+ {[%emt 0:00:30]} 81. Kf6 {[%emt 0:00:33]} Rb1 {[%emt 0:00:37]} 82. Kf5 {[%emt 0:00:28]} Kh6 {[%emt 0:00:24]} 83. Kf6 {[%emt 0:02:22]} Kh7 {[%emt 0:00:11]} 84. Rg4 {[%emt 0:00:44]} Ra1 {[%emt 0:00:39]} 85. Rg7+ {[%emt 0:01:00]} Kh8 {[%emt 0:00:22]} 86. Rg3 {[%emt 0:01:09]} Rh1 {[%emt 0:00:55]} 1/2-1/2